bitfinex/quotes_BTCUSD_20240101
["timestamp","ask_amount","ask_price","bid_price","bid_amount"]
[1704140786442,0.63758319,43711.0,43710.0,0.231]
[1704140786652,0.63758319,43711.0,43710.0,0.28182]
[1704140786876,0.63758319,43711.0,43710.0,0.231]
[1704140787082,0.5281441,43711.0,43710.0,0.231]
[1704140787494,0.66294833,43711.0,43710.0,0.231]
[1704140787721,0.63158693,43711.0,43710.0,0.231]
[1704140787944,0.63858693,43711.0,43710.0,0.034]
[1704140788162,0.53515078,43711.0,43710.0,0.024]
[1704140788372,1.06439975,43711.0,43710.0,0.001]
[1704140788570,1.26656828,43711.0,43710.0,0.001]
[1704140788781,1.05834319,43711.0,43704.0,0.148]
[1704140789034,0.10943193,43706.0,43704.0,0.148]
[1704140789246,0.08207336,43705.0,43704.0,0.148]
[1704140789450,0.08207336,43706.0,43704.0,0.148]
[1704140789656,0.05470387,43705.0,43704.0,0.19222]
[1704140789874,0.08207336,43706.0,43704.0,0.148]
[1704140790081,0.08207336,43705.0,43704.0,0.148]
[1704140790341,0.08207336,43706.0,43704.0,0.148]
[1704140790551,0.08207336,43706.0,43704.0,0.151]
[1704140790756,0.05470141,43705.0,43704.0,0.20624]
[1704140790969,0.05470141,43705.0,43704.0,0.181]
[1704140791178,0.08207336,43707.0,43706.0,0.208]
[1704140791615,0.10943193,43709.0,43707.0,0.01]
[1704140791616,0.08207336,43708.0,43707.0,0.01]
[1704140791813,0.08207336,43708.0,43707.0,0.033]
[1704140792022,0.08207336,43708.0,43707.0,0.181]
[1704140792254,0.08207336,43708.0,43707.0,0.23368]
[1704140793198,0.08607336,43708.0,43707.0,0.23368]
[1704140794019,0.08607336,43708.0,43707.0,0.024]
[1704140794020,0.12043193,43708.0,43707.0,0.024]
[1704140794225,0.011,43708.0,43707.0,0.001]
[1704140794442,0.09302186,43708.0,43707.0,0.011]
[1704140794618,0.02302186,43708.0,43707.0,0.034]
[1704140794840,0.10943193,43709.0,43707.0,0.034]
[1704140795071,0.37990628,43709.0,43708.0,0.023]
[1704140795224,0.33456859,43709.0,43708.0,0.023]
[1704140795443,0.27047435,43709.0,43708.0,0.023]
[1704140796286,0.27547435,43709.0,43708.0,0.023]
[1704140796489,0.27047852,43709.0,43708.0,0.023]
[1704140796686,0.27047852,43709.0,43708.0,0.033]
[1704140796984,0.27547852,43709.0,43708.0,0.023]
[1704140797187,0.41226844,43709.0,43704.0,0.171]
[1704140797387,0.05467566,43706.0,43704.0,0.023]
[1704140797582,0.14978992,43709.0,43704.0,0.023]
[1704140797583,0.05467566,43705.0,43704.0,0.023]
[1704140797813,0.05467566,43705.0,43702.0,0.023]
[1704140797986,0.05467566,43703.0,43699.0,0.1]
[1704140798217,0.05467566,43702.0,43697.0,0.0474]
[1704140798448,0.05467566,43701.0,43696.0,0.04404]
[1704140798648,0.05467566,43701.0,43695.0,0.148]
[1704140798853,0.05467566,43701.0,43698.0,0.148]
[1704140799245,0.05467566,43702.0,43698.0,0.148]
[1704140799445,0.05467566,43702.0,43699.0,0.023]
[1704140799645,0.631009,43703.0,43698.0,0.171]
[1704140799646,0.05467566,43701.0,43698.0,0.171]
[1704140799827,0.05767566,43701.0,43698.0,0.171]
[1704140800024,0.05467566,43701.0,43698.0,0.171]
[1704140800501,0.366136,43700.0,43694.0,0.148]
[1704140800715,0.05467566,43701.0,43697.0,0.14458]
[1704140800922,0.05467566,43702.0,43698.0,0.04596]
[1704140801176,0.005,43701.0,43698.0,0.04596]
[1704140801827,0.005,43701.0,43699.0,0.023]
[1704140802043,0.2736,43705.0,43704.0,0.148]
[1704140802256,0.05467566,43708.0,43705.0,0.023]
[1704140802469,0.05467566,43708.0,43705.0,0.171]
[1704140802666,0.05467566,43709.0,43706.0,0.023]
[1704140802908,0.05462188,43707.0,43706.0,0.023]
[1704140803762,0.05462188,43708.0,43706.0,0.023]
[1704140803967,0.06262188,43708.0,43706.0,0.023]
[1704140804586,0.05462188,43707.0,43706.0,0.023]
[1704140804788,0.06262188,43708.0,43706.0,0.023]
[1704140804993,0.07862188,43708.0,43706.0,0.07062]
[1704140805173,0.07062188,43708.0,43706.0,0.07062]
[1704140805377,0.05462188,43708.0,43706.0,0.06962]
[1704140805594,0.05462188,43709.0,43706.0,0.16962]
[1704140805796,0.008,43707.0,43706.0,0.124]
[1704140806028,0.008,43707.0,43706.0,0.16846]
[1704140806235,0.02,43707.0,43706.0,0.125]
[1704140806419,0.02,43707.0,43706.0,0.16952]
[1704140807070,0.02,43707.0,43706.0,0.16852]
[1704140807294,0.012,43707.0,43706.0,0.16852]
[1704140807505,0.05462188,43709.0,43708.0,0.198]
[1704140807726,0.05462188,43710.0,43708.0,0.231]
[1704140807930,0.004657,43711.0,43710.0,0.158]
[1704140808366,0.004657,43711.0,43710.0,0.21242]
[1704140808588,0.004657,43711.0,43710.0,0.23542]
[1704140810123,0.009657,43711.0,43710.0,0.23542]
[1704140810578,0.011657,43711.0,43710.0,0.23642]
[1704140810781,0.014657,43711.0,43710.0,0.23642]
[1704140810987,0.007657,43711.0,43710.0,0.23542]
[1704140811407,0.012657,43711.0,43710.0,0.181]
[1704140811827,0.007657,43711.0,43710.0,0.181]
[1704140812033,0.009657,43711.0,43710.0,0.22714]
[1704140812244,0.009657,43711.0,43710.0,0.181]
[1704140812447,0.012657,43711.0,43710.0,0.181]
[1704140813123,0.0673194,43711.0,43710.0,0.023]
[1704140813308,0.0673194,43711.0,43709.0,0.023]
[1704140813516,0.0546624,43710.0,43707.0,0.023]
[1704140813726,0.0546624,43710.0,43708.0,0.01]
[1704140813930,0.05467052,43710.0,43709.0,0.023]
[1704140815398,0.08400579,43710.0,43709.0,0.023]
[1704140815575,0.38180391,43710.0,43705.0,0.023]
[1704140815776,0.38180391,43710.0,43697.0,0.39312202]
[1704140815777,0.05469853,43707.0,43704.0,0.023]
[1704140816027,0.0820478,43705.0,43700.0,0.148]
[1704140816345,0.05470358,43704.0,43701.0,0.04662]
[1704140816497,0.05470358,43703.0,43701.0,0.04662]
[1704140817089,0.05470358,43704.0,43701.0,0.09462]
[1704140817328,0.05470358,43704.0,43702.0,0.033]
[1704140817516,0.05470358,43704.0,43702.0,0.09222]
[1704140817802,0.05470358,43703.0,43702.0,0.09222]
[1704140818187,0.05570358,43703.0,43702.0,0.033]
[1704140818390,0.05470358,43703.0,43702.0,0.0864]
[1704140818597,0.0820478,43704.0,43702.0,0.0864]
[1704140819124,0.0820478,43704.0,43703.0,0.04602]
[1704140819338,0.0820478,43704.0,43703.0,0.06902]
[1704140819546,0.37982608,43704.0,43703.0,0.033]
[1704140819751,0.007,43704.0,43703.0,0.07986]
[1704140819980,0.09413353,43704.0,43703.0,0.07986]
[1704140820146,0.08713353,43704.0,43703.0,0.06986]
[1704140820348,0.08213353,43704.0,43703.0,0.07986]
[1704140820554,0.09413353,43704.0,43703.0,0.08086]
[1704140820764,0.12134105,43704.0,43703.0,0.08086]
[1704140820964,0.38482314,43704.0,43703.0,0.07986]
[1704140821163,0.38482314,43704.0,43703.0,0.22786]
[1704140821401,0.38982314,43704.0,43703.0,0.22786]
[1704140821600,0.01,43704.0,43703.0,0.27786]
[1704140821799,0.05978141,43704.0,43703.0,0.27786]
[1704140822231,0.06278141,43704.0,43703.0,0.27786]
[1704140822437,0.05978141,43704.0,43703.0,0.27786]
[1704140822647,0.08217768,43704.0,43703.0,0.29808]
[1704140822852,0.08217768,43704.0,43703.0,0.29908]
[1704140823048,0.10934105,43705.0,43704.0,0.158]
[1704140823248,0.10934105,43705.0,43704.0,0.181]
[1704140823249,0.37980698,43705.0,43704.0,0.181]
[1704140823483,0.10934105,43705.0,43704.0,0.24598]
[1704140824020,0.13667631,43706.0,43705.0,0.01]
[1704140824226,0.13667631,43706.0,43705.0,0.181]
[1704140824434,0.40714552,43706.0,43705.0,0.181]
[1704140824669,0.27046921,43706.0,43705.0,0.2371]
[1704140824882,0.27046921,43706.0,43705.0,0.181]
[1704140825107,0.27046921,43706.0,43705.0,0.081]
[1704140825292,0.13702273,43706.0,43705.0,0.033]
[1704140825417,0.13702273,43706.0,43705.0,0.081]
[1704140825644,0.13702273,43706.0,43705.0,0.033]
[1704140826116,0.14302273,43706.0,43705.0,0.033]
[1704140826536,0.41349194,43706.0,43705.0,0.033]
[1704140827817,0.41349194,43706.0,43695.0,0.10788]
[1704140827818,0.05,43705.0,43702.0,0.01]
[1704140828045,0.27046921,43704.0,43703.0,0.01]
[1704140829131,0.27046921,43704.0,43703.0,0.033]
[1704140829345,0.27046921,43704.0,43703.0,0.034]
[1704140829785,0.27146921,43704.0,43703.0,0.034]
[1704140835217,0.27146921,43704.0,43703.0,0.08674]
[1704140835418,0.27146921,43704.0,43703.0,0.034]
[1704140835637,0.27146921,43704.0,43703.0,0.08164]
[1704140836394,0.27146921,43704.0,43703.0,0.034]
[1704140837627,0.27146921,43704.0,43703.0,0.08068]
[1704140838027,0.27146921,43704.0,43703.0,0.034]
[1704140841372,0.40852529,43704.0,43703.0,0.034]
[1704140841564,0.27146921,43704.0,43703.0,0.034]
[1704140842113,0.40852918,43704.0,43703.0,0.034]
[1704140842836,0.27146921,43704.0,43703.0,0.034]
[1704140843880,0.40852751,43704.0,43703.0,0.034]
[1704140844088,0.27146921,43704.0,43703.0,0.08404]
[1704140844323,0.40852825,43704.0,43703.0,0.08404]
[1704140845587,0.27146921,43704.0,43703.0,0.08404]
[1704140846407,0.40855545,43704.0,43703.0,0.28204]
[1704140846614,0.001,43704.0,43703.0,0.31228]
[1704140846792,0.11067613,43704.0,43703.0,0.31228]
[1704140847011,0.38113967,43704.0,43703.0,0.31228]
[1704140847987,0.08326265,43704.0,43703.0,0.31228]
[1704140848185,0.08326265,43704.0,43703.0,0.678387]
[1704140851373,0.001,43704.0,43703.0,1.01246411]
[1704140852444,0.05483613,43706.0,43705.0,0.208]
[1704140852645,0.10967633,43708.0,43707.0,0.01]
[1704140852793,0.10967633,43708.0,43707.0,0.574073]
[1704140852973,0.10967633,43708.0,43707.0,0.597073]
[1704140853172,0.10967633,43708.0,43707.0,0.662953]
[1704140854965,0.31012256,43708.0,43707.0,0.662953]
[1704140855140,0.31112256,43708.0,43707.0,0.31488]
[1704140855352,0.31212256,43708.0,43707.0,0.680953]
[1704140857316,0.31212256,43708.0,43707.0,0.819313]
[1704140857535,0.05683514,43708.0,43707.0,1.119313]
[1704140857749,0.002,43708.0,43707.0,1.35253011]
[1704140858168,0.002,43708.0,43707.0,1.46253011]
[1704140858882,0.001,43708.0,43707.0,1.45253011]
[1704140859294,0.002,43708.0,43707.0,1.47053011]
[1704140859502,0.001,43708.0,43707.0,1.45253011]
[1704140859920,0.002,43708.0,43707.0,1.47053011]
[1704140860123,0.001,43708.0,43707.0,1.45253011]
[1704140860334,0.002,43708.0,43707.0,1.47053011]
[1704140860537,0.003,43708.0,43707.0,1.48553011]
[1704140860952,0.001,43708.0,43707.0,1.46253011]
[1704140861157,0.004657,43711.0,43710.0,0.574048]
[1704140861367,0.004657,43711.0,43710.0,1.10726511]
[1704140861573,0.004657,43711.0,43710.0,1.32350511]
[1704140861987,0.004657,43711.0,43710.0,0.982168]
[1704140862190,0.004657,43711.0,43710.0,0.943828]
[1704140862416,0.005657,43711.0,43710.0,0.957828]
[1704140863028,0.005657,43711.0,43710.0,0.980828]
[1704140863266,0.005657,43711.0,43710.0,1.43004511]
[1704140863267,0.006657,43711.0,43710.0,1.43004511]
[1704140863476,0.006657,43711.0,43710.0,1.60486511]
[1704140863723,0.0265,43713.0,43712.0,0.208]
[1704140863936,0.0265,43713.0,43712.0,1.04121711]
[1704140864123,0.0265,43713.0,43712.0,1.40724911]
[1704140864338,0.0265,43713.0,43712.0,1.64856911]
[1704140864504,0.0265,43713.0,43712.0,2.02460111]
[1704140864923,0.0265,43713.0,43712.0,1.83560111]
[1704140864924,0.0275,43713.0,43712.0,1.83560111]
[1704140865154,0.0275,43713.0,43712.0,1.21176911]
[1704140865764,0.0285,43713.0,43712.0,1.22576911]
[1704140865912,0.0285,43713.0,43712.0,1.24876911]
[1704140866379,0.0285,43713.0,43712.0,1.23876911]
[1704140866989,0.0285,43713.0,43712.0,1.24876911]
[1704140867767,0.0285,43713.0,43712.0,1.34352111]
[1704140867983,0.0285,43713.0,43712.0,1.24824111]
[1704140868820,0.0285,43713.0,43712.0,1.34406111]
[1704140869243,0.0285,43713.0,43712.0,1.38930111]
[1704140870938,0.0285,43713.0,43712.0,1.35168111]
[1704140871146,0.0285,43713.0,43712.0,1.25586111]
[1704140874301,0.0285,43713.0,43712.0,1.35078111]
[1704140874734,0.0285,43713.0,43712.0,1.25586111]
[1704140876273,0.0285,43713.0,43712.0,1.36038111]
[1704140876935,0.0285,43713.0,43712.0,1.46038111]
[1704140878020,0.0285,43713.0,43712.0,1.66038111]
[1704140881214,0.0285,43713.0,43712.0,2.02641311]
[1704140881648,0.0125,43713.0,43712.0,2.02641311]
[1704140882319,0.0125,43713.0,43712.0,2.06865311]
[1704140882697,0.0125,43713.0,43712.0,2.20857311]
[1704140883269,0.0125,43713.0,43712.0,2.10405311]
[1704140883476,0.023,43714.0,43713.0,0.517472]
[1704140883684,0.023,43714.0,43713.0,1.78273511]
[1704140883888,0.023,43714.0,43713.0,2.20105511]
[1704140884350,0.0265,43716.0,43715.0,0.917472]
[1704140884588,0.0265,43717.0,43716.0,0.517472]
[1704140884844,0.0265,43717.0,43716.0,1.89938511]
[1704140885052,0.0265,43717.0,43716.0,2.19938511]
[1704140885475,0.0265,43717.0,43716.0,2.22238511]
[1704140885934,0.0265,43717.0,43716.0,2.58838311]
[1704140886134,0.0265,43717.0,43716.0,2.44948311]
[1704140886340,0.0265,43717.0,43716.0,2.58592311]
[1704140886990,0.0265,43717.0,43716.0,1.50492911]
[1704140887185,0.0265,43717.0,43716.0,1.52392911]
[1704140887362,0.0265,43717.0,43716.0,1.88992711]
[1704140888097,0.0265,43717.0,43716.0,2.62192311]
[1704140888536,0.0265,43717.0,43716.0,1.52392911]
[1704140888746,0.0265,43717.0,43716.0,2.25592511]
[1704140888995,0.0265,43717.0,43716.0,2.62192311]
[1704140890347,0.0265,43717.0,43716.0,2.60492311]
[1704140890561,0.0265,43717.0,43716.0,2.60292311]
[1704140890772,0.0265,43717.0,43716.0,2.62192311]
[1704140890922,0.0105,43717.0,43716.0,2.62192311]
[1704140891291,0.0105,43717.0,43716.0,2.60492311]
[1704140891492,0.0105,43717.0,43716.0,2.62192311]
[1704140891763,0.0105,43717.0,43716.0,2.48548311]
[1704140892012,0.0105,43717.0,43716.0,2.61886311]
[1704140892269,0.0105,43717.0,43716.0,2.25286511]
[1704140892988,0.0105,43717.0,43716.0,2.61886311]
[1704140893458,0.0105,43717.0,43716.0,1.52086911]
[1704140893700,0.0105,43717.0,43716.0,2.25286511]
[1704140893908,0.0105,43717.0,43716.0,2.61886311]
[1704140898205,0.0105,43717.0,43716.0,2.64621322]
[1704140898626,0.2573,43726.0,43718.0,0.517472]
[1704140898835,0.2573,43726.0,43718.0,2.14863211]
[1704140899044,0.2573,43726.0,43718.0,2.42331211]
[1704140899903,0.2573,43726.0,43718.0,2.43731211]
[1704140900457,0.2573,43726.0,43718.0,2.45431211]
[1704140900676,0.2573,43726.0,43718.0,2.47731211]
[1704140902708,0.2573,43726.0,43718.0,2.61861211]
[1704140904376,0.2573,43726.0,43718.0,2.60461211]
[1704140904748,0.2573,43726.0,43718.0,2.44631211]
[1704140904931,0.2573,43726.0,43718.0,2.46531211]
[1704140905147,0.2573,43726.0,43725.0,0.217472]
[1704140905384,0.2573,43726.0,43725.0,1.58253511]
[1704140905590,0.0265,43728.0,43727.0,0.217472]
[1704140905791,0.0265,43728.0,43727.0,1.48250111]
[1704140906018,0.0265,43728.0,43727.0,1.67782911]
[1704140906217,0.0265,43728.0,43727.0,1.69730111]
[1704140907162,0.0265,43728.0,43727.0,1.71730111]
[1704140907381,0.0265,43728.0,43727.0,2.40620711]
[1704140907587,0.0265,43728.0,43727.0,2.54630711]
[1704140908267,0.0265,43728.0,43727.0,2.40620711]
[1704140908717,0.0265,43728.0,43727.0,2.39720711]
[1704140908938,0.0265,43728.0,43727.0,2.41120711]
[1704140909387,0.0265,43728.0,43727.0,2.52654711]
[1704140909589,0.0265,43728.0,43727.0,2.54354711]
[1704140909788,0.0265,43728.0,43727.0,2.54054711]
[1704140910233,0.0265,43728.0,43727.0,2.55754711]
[1704140911091,0.0265,43728.0,43727.0,2.41720711]
[1704140913150,0.0265,43728.0,43727.0,1.06239511]
[1704140913341,0.0265,43728.0,43727.0,0.95499511]
[1704140913863,0.0265,43728.0,43727.0,1.03283511]
[1704140914021,0.0265,43728.0,43727.0,1.04283511]
[1704140914422,0.0265,43728.0,43727.0,1.06583511]
[1704140914702,0.0265,43728.0,43727.0,1.46583511]
[1704140915041,0.2143,43733.0,43732.0,0.207472]
[1704140915290,0.2143,43733.0,43732.0,1.12955311]
[1704140915759,0.2143,43733.0,43732.0,1.21133311]
[1704140916105,0.13585727,43741.0,43740.0,0.573269]
[1704140916106,0.0265,43741.0,43740.0,0.573269]
[1704140916311,0.0265,43741.0,43740.0,0.82948611]
[1704140916520,0.0265,43741.0,43740.0,1.42948611]
[1704140916731,0.0265,43741.0,43740.0,1.63804611]
[1704140917352,0.0265,43741.0,43740.0,1.65604611]
[1704140917535,0.0265,43741.0,43740.0,1.64804611]
[1704140917961,0.0265,43741.0,43740.0,2.02384311]
[1704140918187,0.0265,43741.0,43740.0,2.15836311]
[1704140918411,0.0265,43741.0,43740.0,1.42676911]
[1704140918628,0.0265,43741.0,43740.0,1.79256611]
[1704140918832,0.0265,43741.0,43740.0,1.79956611]
[1704140919042,0.0265,43741.0,43740.0,2.12235311]
[1704140919260,0.0265,43741.0,43740.0,2.10535311]
[1704140919468,0.0265,43741.0,43740.0,2.13235311]
[1704140919679,0.0265,43741.0,43740.0,2.25017311]
[1704140919890,0.0265,43741.0,43740.0,2.11835311]
[1704140920101,0.0265,43741.0,43740.0,2.13435311]
[1704140920307,0.0265,43741.0,43740.0,2.26695311]
[1704140921155,6e-05,43750.0,43749.0,0.507472]
[1704140921365,6e-05,43750.0,43749.0,0.77368911]
[1704140921585,6e-05,43750.0,43749.0,1.31236911]
[1704140922031,6e-05,43750.0,43749.0,1.67809111]
[1704140922244,6e-05,43750.0,43749.0,1.67909111]
[1704140922676,6e-05,43750.0,43749.0,1.69409111]
[1704140922815,6e-05,43750.0,43749.0,1.67809111]
[1704140923241,6e-05,43750.0,43749.0,1.69409111]
[1704140923438,6e-05,43750.0,43749.0,0.92049111]
[1704140923639,6e-05,43750.0,43749.0,0.51804911]
[1704140924202,6e-05,43750.0,43749.0,0.54704911]
[1704140924637,6e-05,43750.0,43749.0,0.53404911]
[1704140925415,6e-05,43750.0,43749.0,0.51804911]
[1704140926118,6e-05,43750.0,43749.0,0.55274911]
[1704140926487,6e-05,43750.0,43749.0,0.54474911]
[1704140926750,6e-05,43750.0,43749.0,0.52478911]
[1704140927025,6e-05,43750.0,43749.0,0.52278911]
[1704140927443,6e-05,43750.0,43749.0,0.52778911]
[1704140927795,6e-05,43750.0,43749.0,0.52678911]
[1704140928747,6e-05,43750.0,43749.0,0.52278911]
[1704140929327,6e-05,43750.0,43749.0,0.52378911]
[1704140929746,6e-05,43750.0,43749.0,0.55174325]
[1704140930981,6e-05,43750.0,43749.0,0.55274325]
[1704140932003,6e-05,43750.0,43749.0,0.55174325]
[1704140932202,6e-05,43750.0,43749.0,0.52378911]
[1704140932436,6e-05,43750.0,43749.0,0.199]
[1704140933443,6e-05,43750.0,43749.0,0.202]
[1704140933686,6e-05,43750.0,43749.0,0.256312]
[1704140933912,6e-05,43750.0,43749.0,0.234472]
[1704140934096,6e-05,43750.0,43749.0,0.225]
[1704140934324,6e-05,43750.0,43749.0,0.231472]
[1704140934604,6e-05,43750.0,43749.0,0.283912]
[1704140934815,6e-05,43750.0,43749.0,0.222]
[1704140935242,0.05473907,43750.0,43749.0,0.231472]
[1704140935462,0.05473907,43750.0,43749.0,0.023]
[1704140935754,6e-05,43750.0,43749.0,0.023]
[1704140936014,0.08207795,43750.0,43746.0,0.06294]
[1704140936226,0.05460683,43750.0,43747.0,0.05094]
[1704140936438,0.2532,43749.0,43742.0,0.38094]
[1704140936654,0.30774683,43749.0,43747.0,0.0501]
[1704140936874,0.30774683,43749.0,43748.0,0.0441]
[1704140937089,0.2532,43749.0,43743.0,0.30677711]
[1704140937316,0.30774683,43749.0,43748.0,0.0447]
[1704140937550,0.30774683,43749.0,43748.0,0.023]
[1704140937764,0.33521795,43749.0,43748.0,0.023]
[1704140937985,0.30776249,43749.0,43748.0,0.001]
[1704140938425,0.33521795,43749.0,43743.0,0.04842]
[1704140938787,0.05456988,43747.0,43743.0,0.04842]
[1704140938999,0.05456988,43746.0,43738.0,0.06084]
[1704140939205,0.05456988,43744.0,43738.0,0.3]
[1704140939599,0.05456988,43744.0,43743.0,0.001]
[1704140940429,0.2498,43745.0,43740.0,0.023]
[1704140940638,0.30436988,43745.0,43740.0,0.07592]
[1704140941081,0.30436988,43745.0,43741.0,0.045]
[1704140941289,0.2498,43745.0,43742.0,0.023]
[1704140941491,0.30436988,43745.0,43742.0,0.023]
[1704140942319,0.05456988,43744.0,43742.0,0.023]
[1704140942517,0.05456988,43744.0,43737.0,0.0624]
[1704140942518,0.05456988,43744.0,43738.0,0.023]
[1704140943132,0.05456988,43742.0,43738.0,0.023]
[1704140943350,0.05456988,43741.0,43738.0,0.023]
[1704140943582,0.10935727,43740.0,43736.0,0.023]
[1704140943791,0.05461084,43738.0,43735.0,0.023]
[1704140943992,0.05461084,43738.0,43730.0,0.0627]
[1704140944200,0.05461084,43738.0,43730.0,0.29591711]
[1704140944413,0.2634,43737.0,43730.0,0.29591711]
[1704140944614,0.2634,43737.0,43736.0,0.003]
[1704140945233,0.2634,43737.0,43736.0,0.026]
[1704140945841,0.2634,43737.0,43736.0,0.023]
[1704140946056,0.2634,43737.0,43732.0,0.023]
[1704140946261,0.2694,43737.0,43732.0,0.023]
[1704140946462,0.2634,43737.0,43733.0,0.06546]
[1704140946675,0.2694,43737.0,43734.0,0.023]
[1704140947095,0.2694,43737.0,43736.0,0.001]
[1704140947322,0.2694,43737.0,43736.0,0.024]
[1704140947529,0.2694,43737.0,43736.0,0.023]
[1704140948144,0.2634,43737.0,43736.0,0.023]
[1704140948347,0.2694,43737.0,43734.0,0.001]
[1704140948551,0.2634,43737.0,43734.0,0.001]
[1704140948965,0.2694,43737.0,43734.0,0.024]
[1704140949172,0.2634,43737.0,43734.0,0.024]
[1704140949386,0.2634,43737.0,43735.0,0.05076]
[1704140949583,0.32402564,43737.0,43736.0,0.024]
[1704140950234,0.2694,43737.0,43736.0,0.023]
[1704140950430,0.32402564,43737.0,43735.0,0.001]
[1704140950637,0.2694,43737.0,43735.0,0.001]
[1704140950833,0.32402564,43737.0,43735.0,0.001]
[1704140951067,0.32402564,43737.0,43734.0,0.023]
[1704140951251,0.2634,43737.0,43736.0,0.001]
[1704140951454,0.2694,43737.0,43736.0,0.001]
[1704140951662,0.2634,43737.0,43736.0,0.001]
[1704140951870,0.2634,43737.0,43736.0,0.024]
[1704140952065,0.2694,43737.0,43736.0,0.024]
[1704140952323,0.2634,43737.0,43736.0,0.023]
[1704140952524,0.2694,43737.0,43736.0,0.023]
[1704140952725,0.2694,43737.0,43736.0,0.04668]
[1704140952973,0.2694,43737.0,43736.0,0.023]
[1704140953382,0.2694,43737.0,43736.0,0.07388]
[1704140953631,0.2694,43737.0,43736.0,0.023]
[1704140953806,0.2694,43737.0,43735.0,0.023]
[1704140954012,0.2694,43737.0,43732.0,0.023]
[1704140954210,0.2634,43737.0,43736.0,0.05088]
[1704140954414,0.2634,43737.0,43736.0,0.07388]
[1704140954671,0.2634,43737.0,43736.0,0.023]
[1704140954858,0.2634,43737.0,43736.0,0.05082]
[1704140955055,0.2674,43737.0,43736.0,0.07382]
[1704140955260,0.2674,43737.0,43736.0,0.023]
[1704140955477,0.2674,43737.0,43735.0,0.023]
[1704140955692,0.2674,43737.0,43736.0,0.07998]
[1704140955903,0.004,43737.0,43736.0,0.10298]
[1704140956137,0.004,43737.0,43736.0,0.023]
[1704140956348,0.004,43737.0,43736.0,0.07122]
[1704140956561,0.004,43737.0,43736.0,0.09422]
[1704140956772,0.004,43737.0,43736.0,0.023]
[1704140956999,0.004,43737.0,43736.0,0.09092]
[1704140957462,0.2468,43740.0,43736.0,0.09092]
[1704140957684,0.003,43737.0,43736.0,0.09092]
[1704140957898,0.2468,43744.0,43736.0,0.32413711]
[1704140958117,0.2468,43744.0,43737.0,0.43801711]
[1704140958338,0.0819392,43746.0,43737.0,0.25621711]
[1704140958339,0.05462564,43746.0,43737.0,0.25621711]
[1704140958551,0.2468,43745.0,43737.0,0.44581711]
[1704140958774,0.2468,43745.0,43738.0,0.17712]
[1704140958985,0.2468,43745.0,43739.0,0.023]
[1704140959393,0.30142564,43745.0,43740.0,0.07626]
[1704140959606,0.2468,43745.0,43741.0,0.023]
[1704140960059,0.2468,43745.0,43742.0,0.072]
[1704140960285,0.05462564,43746.0,43742.0,0.072]
[1704140960286,0.05462564,43746.0,43743.0,0.023]
[1704140960493,0.006,43744.0,43743.0,0.023]
[1704140960702,0.2602,43749.0,43744.0,0.05736]
[1704140960946,0.2602,43749.0,43745.0,0.023]
[1704140961618,0.2602,43749.0,43746.0,0.05274]
[1704140961833,0.2602,43749.0,43747.0,0.023]
[1704140962272,0.320812,43749.0,43747.0,0.023]
[1704140962482,0.2662,43749.0,43747.0,0.023]
[1704140962697,0.2662,43749.0,43748.0,0.0441]
[1704140962916,0.2662,43749.0,43748.0,0.023]
[1704140963127,0.2662,43749.0,43748.0,0.06692]
[1704140963357,0.2662,43749.0,43748.0,0.09218]
[1704140963358,0.006,43749.0,43748.0,0.09218]
[1704140964264,0.85378681,43750.0,43748.0,0.09218]
[1704140964481,0.006,43749.0,43748.0,0.09218]
[1704140964693,0.85378681,43750.0,43748.0,0.023]
[1704140964916,0.79917481,43750.0,43748.0,0.0966]
[1704140965151,0.006,43749.0,43748.0,0.024]
[1704140965353,0.006,43749.0,43748.0,0.023]
[1704140965560,0.006,43749.0,43744.0,0.023]
[1704140965768,0.79917481,43750.0,43748.0,0.06222]
[1704140965949,0.79917481,43750.0,43749.0,0.023]
[1704140966151,0.80517481,43750.0,43749.0,0.023]
[1704140966357,0.80517481,43750.0,43746.0,0.08624]
[1704140967024,0.80517481,43750.0,43747.0,0.05328]
[1704140967232,0.80517481,43750.0,43748.0,0.023]
[1704140967440,0.79917481,43750.0,43748.0,0.023]
[1704140967662,0.001,43749.0,43748.0,0.023]
[1704140967802,0.054612,43749.0,43746.0,0.023]
[1704140968043,0.054612,43748.0,43746.0,0.023]
[1704140968244,0.054612,43749.0,43746.0,0.023]
[1704140968445,0.054612,43748.0,43746.0,0.07124]
[1704140968769,0.054612,43747.0,43746.0,0.023]
[1704140968930,0.054612,43748.0,43744.0,0.023]
[1704140969342,0.054612,43747.0,43744.0,0.023]
[1704140969545,0.0819392,43745.0,43741.0,0.0618]
[1704140969746,0.0819392,43745.0,43735.0,0.7084]
[1704140969747,0.05466397,43743.0,43739.0,0.05406]
[1704140969954,0.05466397,43741.0,43739.0,0.05406]
[1704140970208,0.05466397,43741.0,43736.0,0.0822]
[1704140970455,0.05466397,43741.0,43740.0,0.0579]
[1704140970665,0.05466397,43741.0,43737.0,0.31397711]
[1704140970869,0.05466397,43741.0,43738.0,0.07338]
[1704140971267,0.05466397,43741.0,43739.0,0.023]
[1704140972007,0.05466397,43741.0,43740.0,0.0573]
[1704140972215,0.05466397,43741.0,43740.0,0.0803]
[1704140972809,0.05466397,43743.0,43740.0,0.0803]
[1704140973016,0.05466397,43742.0,43741.0,0.023]
[1704140973385,0.05466397,43742.0,43741.0,0.07832]
[1704140974221,0.0819392,43742.0,43741.0,0.07832]
[1704140975281,0.0119392,43742.0,43741.0,0.07832]
[1704140975640,0.0119392,43742.0,43741.0,0.08732]
[1704140976250,0.0119392,43742.0,43741.0,0.09332]